[Event "*** Titled Tuesday 3|2 Blitz"]
[Site "Chess.com"]
[Date "2015.03.03"]
[Round "2"]
[White "MITerryble"]
[Black "Irochka83"]
[Result "1-0"]
[WhiteElo "2499"]
[BlackElo "2273"]
[TimeControl "180+2"]
[EndTime "11:22:37 PST"]
[Termination "MITerryble won by resignation"]

1. d4 {[%clk 0:02:56.4]} 1... d5 {[%clk 0:02:57]} 2. Nf3 {[%clk 0:02:57.6]} 2...
Nf6 {[%clk 0:02:57.6]} 3. c4 {[%clk 0:02:58.9]} 3... dxc4 {[%clk 0:02:58.1]} 4.
e3 {[%clk 0:02:59.9]} 4... e6 {[%clk 0:02:58.9]} 5. Bxc4 {[%clk 0:03:01]} 5...
c5 {[%clk 0:02:59.8]} 6. O-O {[%clk 0:03:02.1]} 6... a6 {[%clk 0:03:01.2]} 7.
dxc5 {[%clk 0:03:03.2]} 7... Qxd1 {[%clk 0:03:01.3]} 8. Rxd1 {[%clk 0:03:05.1]}
8... Bxc5 {[%clk 0:03:01.5]} 9. Be2 {[%clk 0:03:03.1]} 9... b6 {[%clk
0:03:01.9]} 10. Nc3 {[%clk 0:03:00.5]} 10... Nbd7 {[%clk 0:03:01.5]} 11. a3
{[%clk 0:02:57.4]} 11... Bb7 {[%clk 0:03:01.7]} 12. b4 {[%clk 0:02:58.6]} 12...
Be7 {[%clk 0:03:01.4]} 13. Bb2 {[%clk 0:02:59.9]} 13... O-O {[%clk 0:02:42.2]}
14. g4 {[%clk 0:02:37.9]} 14... h6 {[%clk 0:02:34.9]} 15. h4 {[%clk 0:02:38.7]}
15... Rfd8 {[%clk 0:02:31.8]} 16. g5 {[%clk 0:02:39.6]} 16... hxg5 {[%clk
0:02:32.3]} 17. hxg5 {[%clk 0:02:41.5]} 17... Nd5 {[%clk 0:02:15]} 18. Rac1
{[%clk 0:02:26.4]} 18... b5 {[%clk 0:02:04.5]} 19. Nxd5 {[%clk 0:01:34.3]} 19...
Bxd5 {[%clk 0:02:04.7]} 20. Rc7 {[%clk 0:01:30.8]} 20... Bd6 {[%clk 0:02:03.1]}
21. Rcc1 {[%clk 0:01:29.4]} 21... Nb6 {[%clk 0:01:56.1]} 22. Ne5 {[%clk
0:01:29.6]} 22... Rac8 {[%clk 0:01:47.1]} 23. g6 {[%clk 0:01:17.7]} 23... fxg6
{[%clk 0:01:39.1]} 24. Nxg6 {[%clk 0:01:16.5]} 24... Nc4 {[%clk 0:01:24.6]} 25.
Bxc4 {[%clk 0:01:09.7]} 25... Rxc4 {[%clk 0:01:19.3]} 26. Rxc4 {[%clk
0:01:04.6]} 26... bxc4 {[%clk 0:01:13]} 27. Be5 {[%clk 0:00:43.6]} 27... Kf7
{[%clk 0:00:46]} 28. Bxd6 {[%clk 0:00:44.5]} 28... Kxg6 {[%clk 0:00:47.1]} 29.
a4 {[%clk 0:00:44.3]} 29... Rxd6 {[%clk 0:00:46.4]} 30. e4 {[%clk 0:00:41.4]}
30... c3 {[%clk 0:00:40.9]} 31. exd5 {[%clk 0:00:41.5]} 31... exd5 {[%clk
0:00:42.8]} 32. Kf1 {[%clk 0:00:42.8]} 32... d4 {[%clk 0:00:36.8]} 33. Ke2
{[%clk 0:00:43.7]} 33... c2 {[%clk 0:00:36.4]} 34. Rg1+ {[%clk 0:00:35.4]} 34...
Kf5 {[%clk 0:00:37.4]} 35. Kd3 {[%clk 0:00:32.6]} 35... Rc6 {[%clk 0:00:34.2]}
36. Rc1 {[%clk 0:00:33.6]} 36... g5 {[%clk 0:00:14.5]} 37. Rxc2 {[%clk
0:00:28.1]} 37... Rd6 {[%clk 0:00:15.8]} 38. Rc4 {[%clk 0:00:24.4]} 38... Ke5
{[%clk 0:00:17.1]} 39. b5 {[%clk 0:00:18.4]} 39... axb5 {[%clk 0:00:17.9]} 40.
axb5 {[%clk 0:00:20.3]} 40... g4 {[%clk 0:00:18.6]} 41. Rc5+ {[%clk 0:00:15.3]}
41... Kf4 {[%clk 0:00:18.3]} 42. Rc6 {[%clk 0:00:15.8]} 42... Rd8 {[%clk
0:00:15.1]} 43. b6 {[%clk 0:00:16.7]} 43... Kf3 {[%clk 0:00:14.5]} 44. Rf6+
{[%clk 0:00:17.5]} 44... Kg2 {[%clk 0:00:15.7]} 45. b7 {[%clk 0:00:18.7]} 45...
Rb8 {[%clk 0:00:15.8]} 46. Rf7 {[%clk 0:00:19.5]} 46... Rd8 {[%clk 0:00:14.5]}
47. Rf4 {[%clk 0:00:20]} 47... Rb8 {[%clk 0:00:09.8]} 48. Rxg4+ {[%clk
0:00:20.9]} 48... Kxf2 {[%clk 0:00:10.3]} 49. Rg7 {[%clk 0:00:22.3]} 49... Rd8
{[%clk 0:00:10.8]} 50. Rf7+ {[%clk 0:00:20.7]} 50... Kg3 {[%clk 0:00:08.3]} 51.
Rd7 {[%clk 0:00:20.1]} 51... Rb8 {[%clk 0:00:08.4]} 52. Kxd4 {[%clk 0:00:20.7]}
52... Kf4 {[%clk 0:00:10]} 53. Kd5 {[%clk 0:00:21.9]} 53... Kf5 {[%clk
0:00:11.3]} 54. Kd6 {[%clk 0:00:21.5]} 54... Kf6 {[%clk 0:00:11.6]} 55. Kc7
{[%clk 0:00:22.7]} 1-0

[Event "*** Titled Tuesday 3|2 Blitz"]
[Site "Chess.com"]
[Date "2015.03.03"]
[Round "2"]
[White "Chesseducation4u"]
[Black "vinceyoung15"]
[Result "1-0"]
[WhiteElo "2320"]
[BlackElo "2113"]
[TimeControl "180+2"]
[EndTime "11:22:45 PST"]
[Termination "Chesseducation4u won by resignation"]

1. Nf3 {[%clk 0:03:00]} 1... d5 {[%clk 0:02:57.3]} 2. g3 {[%clk 0:03:00.8]} 2...
e6 {[%clk 0:02:57.3]} 3. Bg2 {[%clk 0:03:02.1]} 3... Nf6 {[%clk 0:02:58.2]} 4.
O-O {[%clk 0:03:04]} 4... Be7 {[%clk 0:02:59.7]} 5. c4 {[%clk 0:03:05.9]} 5...
O-O {[%clk 0:03:01.1]} 6. d4 {[%clk 0:03:07.3]} 6... c6 {[%clk 0:03:00.9]} 7.
Qc2 {[%clk 0:03:08.3]} 7... Nbd7 {[%clk 0:03:01.6]} 8. Rd1 {[%clk 0:03:09.8]}
8... b6 {[%clk 0:03:01.8]} 9. b3 {[%clk 0:03:11.3]} 9... Bb7 {[%clk 0:03:02.4]}
10. Nc3 {[%clk 0:03:12.9]} 10... Rc8 {[%clk 0:03:02]} 11. e4 {[%clk 0:03:14.5]}
11... Bb4 {[%clk 0:03:02.9]} 12. e5 {[%clk 0:03:02.1]} 12... Bxc3 {[%clk
0:03:00.4]} 13. Qxc3 {[%clk 0:03:02.2]} 13... Ne8 {[%clk 0:02:47.1]} 14. c5
{[%clk 0:02:43.3]} 14... bxc5 {[%clk 0:02:40.4]} 15. dxc5 {[%clk 0:02:45.2]}
15... f6 {[%clk 0:02:41.1]} 16. Bh3 {[%clk 0:02:24.9]} 16... f5 {[%clk
0:02:36.2]} 17. Bf1 {[%clk 0:02:20.3]} 17... h6 {[%clk 0:02:30.6]} 18. h4 {[%clk
0:02:20.1]} 18... Qe7 {[%clk 0:02:24]} 19. Be3 {[%clk 0:02:11.6]} 19... Nc7
{[%clk 0:02:21.1]} 20. a4 {[%clk 0:02:11.2]} 20... Rf7 {[%clk 0:01:57.9]} 21.
Qa5 {[%clk 0:01:59.2]} 21... a6 {[%clk 0:01:44.9]} 22. Rac1 {[%clk 0:01:59.4]}
22... Nf8 {[%clk 0:01:13.8]} 23. Qb4 {[%clk 0:01:43.7]} 23... Ba8 {[%clk
0:01:09.7]} 24. h5 {[%clk 0:01:42.4]} 24... g5 {[%clk 0:00:54.5]} 25. hxg6
{[%clk 0:01:41.7]} 25... Nxg6 {[%clk 0:00:55.5]} 26. Bxh6 {[%clk 0:01:26.9]}
26... f4 {[%clk 0:00:55.9]} 27. Bg5 {[%clk 0:01:09.4]} 27... Qf8 {[%clk
0:00:51.4]} 28. g4 {[%clk 0:01:09.4]} 28... Rb8 {[%clk 0:00:41.1]} 29. Qc3
{[%clk 0:01:09]} 29... d4 {[%clk 0:00:27.7]} 30. Rxd4 {[%clk 0:00:56.5]} 30...
Nd5 {[%clk 0:00:28.1]} 31. Qd3 {[%clk 0:00:54.4]} 31... Qg7 {[%clk 0:00:25.3]}
32. Qxa6 {[%clk 0:00:39.5]} 32... Nxe5 {[%clk 0:00:22.6]} 33. Nxe5 {[%clk
0:00:29.2]} 33... Qxe5 {[%clk 0:00:23.4]} 34. Rxd5 {[%clk 0:00:29.6]} 34... exd5
{[%clk 0:00:18.8]} 35. Bh4 {[%clk 0:00:31.2]} 35... Rbf8 {[%clk 0:00:11.8]} 36.
f3 {[%clk 0:00:29.2]} 36... Bb7 {[%clk 0:00:12.8]} 37. Qd3 {[%clk 0:00:28.4]}
37... Qe3+ {[%clk 0:00:12.2]} 38. Qxe3 {[%clk 0:00:28.9]} 38... fxe3 {[%clk
0:00:14.1]} 39. Be2 {[%clk 0:00:30.5]} 39... Bc8 {[%clk 0:00:12.1]} 40. b4
{[%clk 0:00:30.8]} 40... Be6 {[%clk 0:00:11]} 41. Rd1 {[%clk 0:00:30.5]} 41...
Rf4 {[%clk 0:00:10.4]} 42. b5 {[%clk 0:00:30.1]} 42... Rxa4 {[%clk 0:00:10.5]}
43. bxc6 {[%clk 0:00:31.5]} 43... Rc8 {[%clk 0:00:11.5]} 44. Bg5 {[%clk
0:00:29]} 44... Rxc6 {[%clk 0:00:10.7]} 45. Bb5 {[%clk 0:00:29.8]} 45... e2
{[%clk 0:00:07.7]} 46. Re1 {[%clk 0:00:30]} 46... Raa6 {[%clk 0:00:06.1]} 47.
Bxa6 {[%clk 0:00:30.2]} 47... Rxa6 {[%clk 0:00:06.3]} 48. Rxe2 {[%clk
0:00:32.1]} 48... Rc6 {[%clk 0:00:08]} 49. Be7 {[%clk 0:00:31.3]} 49... Kf7
{[%clk 0:00:08.9]} 50. Bd6 {[%clk 0:00:32.4]} 50... Bd7 {[%clk 0:00:08.4]} 51.
Ra2 {[%clk 0:00:32.4]} 51... Be6 {[%clk 0:00:10.3]} 52. Kf2 {[%clk 0:00:32.9]}
52... d4 {[%clk 0:00:10]} 53. Rd2 {[%clk 0:00:33.7]} 53... Kg6 {[%clk
0:00:09.6]} 54. Rxd4 {[%clk 0:00:34.5]} 54... Kg5 {[%clk 0:00:11.5]} 55. Kg3
{[%clk 0:00:35.3]} 55... Kf6 {[%clk 0:00:11.9]} 56. f4 {[%clk 0:00:35.6]} 56...
Kf7 {[%clk 0:00:13.2]} 57. f5 {[%clk 0:00:36.9]} 57... Bd7 {[%clk 0:00:14.3]}
58. Kf4 {[%clk 0:00:38.2]} 58... Ra6 {[%clk 0:00:15.6]} 59. g5 {[%clk
0:00:39.1]} 59... Ra1 {[%clk 0:00:16.6]} 60. g6+ {[%clk 0:00:40.3]} 60... Kf6
{[%clk 0:00:18]} 61. Be5+ {[%clk 0:00:40.5]} 61... Ke7 {[%clk 0:00:19.7]} 62.
f6+ {[%clk 0:00:38.6]} 62... Ke8 {[%clk 0:00:20.9]} 63. f7+ {[%clk 0:00:39.4]}
63... Ke7 {[%clk 0:00:22.2]} 64. Bf6+ {[%clk 0:00:39.2]} 1-0

[Event "*** Titled Tuesday 3|2 Blitz"]
[Site "Chess.com"]
[Date "2015.03.03"]
[Round "2"]
[White "Rijeka1999"]
[Black "esr44"]
[Result "1-0"]
[WhiteElo "2245"]
[BlackElo "2072"]
[TimeControl "180+2"]
[EndTime "11:22:57 PST"]
[Termination "Rijeka1999 won by checkmate"]

1. e4 {[%clk 0:03:00]} 1... c6 {[%clk 0:02:58.7]} 2. d4 {[%clk 0:02:58.1]} 2...
d5 {[%clk 0:03:00.2]} 3. Nc3 {[%clk 0:02:56.8]} 3... dxe4 {[%clk 0:03:01.6]} 4.
Nxe4 {[%clk 0:02:56.7]} 4... Bf5 {[%clk 0:03:03.2]} 5. Ng3 {[%clk 0:02:56.2]}
5... Bg6 {[%clk 0:03:04.8]} 6. Bc4 {[%clk 0:02:57.1]} 6... e6 {[%clk 0:03:05.5]}
7. N1e2 {[%clk 0:02:58.4]} 7... Bd6 {[%clk 0:03:06.7]} 8. h4 {[%clk 0:02:58.7]}
8... h6 {[%clk 0:03:02.2]} 9. Nf4 {[%clk 0:02:59.6]} 9... Bxf4 {[%clk
0:02:59.4]} 10. Bxf4 {[%clk 0:02:59.7]} 10... Nf6 {[%clk 0:02:51.4]} 11. Qe2
{[%clk 0:02:59.3]} 11... Qxd4 {[%clk 0:02:50.5]} 12. Be5 {[%clk 0:02:59.1]}
12... Qc5 {[%clk 0:02:05.6]} 13. O-O-O {[%clk 0:02:47.8]} 13... Nbd7 {[%clk
0:02:02.2]} 14. Bd6 {[%clk 0:02:39.7]} 14... Qa5 {[%clk 0:01:23]} 15. a3 {[%clk
0:01:25.1]} 15... O-O-O {[%clk 0:01:21.7]} 16. Be7 {[%clk 0:01:21.9]} 16... Rde8
{[%clk 0:01:12.8]} 17. Bb4 {[%clk 0:01:22.7]} 17... Qe5 {[%clk 0:01:07.7]} 18.
Qd2 {[%clk 0:01:17.2]} 18... Nb6 {[%clk 0:01:05.7]} 19. Bb3 {[%clk 0:01:13.8]}
19... Rd8 {[%clk 0:00:59.9]} 20. Bd6 {[%clk 0:00:51.3]} 20... Qb5 {[%clk
0:00:41.3]} 21. Qf4 {[%clk 0:00:33.3]} 21... Nfd5 {[%clk 0:00:35.9]} 22. Qe5
{[%clk 0:00:33.7]} 22... Nc4 {[%clk 0:00:34.4]} 23. Bxc4 {[%clk 0:00:21.3]}
23... Qxc4 {[%clk 0:00:35.4]} 24. Rd2 {[%clk 0:00:22.9]} 24... Rxd6 {[%clk
0:00:24.5]} 25. Qxd6 {[%clk 0:00:22.7]} 25... Rd8 {[%clk 0:00:26]} 26. Qe5
{[%clk 0:00:22.2]} 26... Rd7 {[%clk 0:00:23.5]} 27. h5 {[%clk 0:00:18.6]} 27...
Qa2 {[%clk 0:00:23.8]} 28. b3 {[%clk 0:00:18]} 28... Qxa3+ {[%clk 0:00:22.1]}
29. Qb2 {[%clk 0:00:19]} 29... Qxb2+ {[%clk 0:00:19.8]} 30. Kxb2 {[%clk
0:00:20.4]} 30... Bh7 {[%clk 0:00:21]} 31. Rhd1 {[%clk 0:00:21.3]} 31... Re7
{[%clk 0:00:18.7]} 32. c4 {[%clk 0:00:22.3]} 32... Nf6 {[%clk 0:00:18.5]} 33.
Rd8+ {[%clk 0:00:23.1]} 33... Kc7 {[%clk 0:00:20]} 34. Ra8 {[%clk 0:00:24.1]}
34... a6 {[%clk 0:00:19.8]} 35. Rdd8 {[%clk 0:00:24.5]} 35... Kb6 {[%clk
0:00:21.3]} 36. b4 {[%clk 0:00:25.3]} 36... c5 {[%clk 0:00:22.1]} 37. Rd6+
{[%clk 0:00:25.5]} 37... Kc7 {[%clk 0:00:20]} 38. bxc5 {[%clk 0:00:26.9]} 38...
Ne4 {[%clk 0:00:18.1]} 39. Nxe4 {[%clk 0:00:26.3]} 39... Bxe4 {[%clk 0:00:20]}
40. f3 {[%clk 0:00:26.7]} 40... Bc6 {[%clk 0:00:19.8]} 41. Kc3 {[%clk
0:00:27.1]} 41... b6 {[%clk 0:00:21.1]} 42. Ra7+ {[%clk 0:00:26.9]} 42... Bb7
{[%clk 0:00:18.3]} 43. Rxb6 {[%clk 0:00:28.1]} 43... Kb8 {[%clk 0:00:17.8]} 44.
Rbxa6 {[%clk 0:00:28.5]} 44... Rc7 {[%clk 0:00:14.9]} 45. Ra1 {[%clk 0:00:23.6]}
45... e5 {[%clk 0:00:14.2]} 46. R7a5 {[%clk 0:00:24.7]} 46... f5 {[%clk
0:00:14.4]} 47. Re1 {[%clk 0:00:25.1]} 47... e4 {[%clk 0:00:15.3]} 48. fxe4
{[%clk 0:00:26.7]} 48... Bxe4 {[%clk 0:00:16.7]} 49. Rb5+ {[%clk 0:00:27.5]}
49... Kc8 {[%clk 0:00:17.6]} 50. g3 {[%clk 0:00:28.8]} 50... Kd7 {[%clk
0:00:17.5]} 51. Re3 {[%clk 0:00:28.5]} 51... Kc6 {[%clk 0:00:18.4]} 52. Kb4
{[%clk 0:00:29.4]} 52... Rd7 {[%clk 0:00:18.5]} 53. Ra3 {[%clk 0:00:30.2]} 53...
Rd2 {[%clk 0:00:15.7]} 54. Ra6+ {[%clk 0:00:31.2]} 54... Kc7 {[%clk 0:00:17.2]}
55. Ra7+ {[%clk 0:00:32.5]} 55... Kc8 {[%clk 0:00:15.5]} 56. c6 {[%clk
0:00:33.8]} 56... Rb2+ {[%clk 0:00:11.5]} 57. Kc5 {[%clk 0:00:35]} 57... Rb1
{[%clk 0:00:10.8]} 58. Rxb1 {[%clk 0:00:33.8]} 58... Bxb1 {[%clk 0:00:11.5]} 59.
Kd6 {[%clk 0:00:35.1]} 59... Kb8 {[%clk 0:00:10.5]} 60. c7+ {[%clk 0:00:36]}
60... Kxa7 {[%clk 0:00:10.9]} 61. c8=Q {[%clk 0:00:37]} 61... Kb6 {[%clk
0:00:10.2]} 62. c5+ {[%clk 0:00:37.2]} 62... Ka5 {[%clk 0:00:10.2]} 63. c6
{[%clk 0:00:37.9]} 63... Be4 {[%clk 0:00:08.6]} 64. Qb8 {[%clk 0:00:38.1]} 64...
Bf3 {[%clk 0:00:08.3]} 65. Kc5 {[%clk 0:00:39.1]} 65... Bxh5 {[%clk 0:00:07.1]}
66. Qa7# {[%clk 0:00:39]} 1-0

[Event "*** Titled Tuesday 3|2 Blitz"]
[Site "Chess.com"]
[Date "2015.03.03"]
[Round "2"]
[White "gmjlh"]
[Black "petrpalachev"]
[Result "1/2-1/2"]
[WhiteElo "2478"]
[BlackElo "2442"]
[TimeControl "180+2"]
[EndTime "11:23:08 PST"]
[Termination "Game drawn by agreement"]

1. e4 {[%clk 0:03:00]} 1... e6 {[%clk 0:02:54.5]} 2. d4 {[%clk 0:03:00.7]} 2...
d5 {[%clk 0:02:51.1]} 3. Nd2 {[%clk 0:03:02.3]} 3... c5 {[%clk 0:02:44]} 4. Ngf3
{[%clk 0:03:01]} 4... Nf6 {[%clk 0:02:41.2]} 5. Bb5+ {[%clk 0:02:58.8]} 5... Bd7
{[%clk 0:02:22.4]} 6. Bxd7+ {[%clk 0:02:59.5]} 6... Qxd7 {[%clk 0:02:23.2]} 7.
exd5 {[%clk 0:03:00.4]} 7... Nxd5 {[%clk 0:02:16.6]} 8. O-O {[%clk 0:02:59.4]}
8... Nc6 {[%clk 0:02:16.8]} 9. Nc4 {[%clk 0:02:56.7]} 9... cxd4 {[%clk
0:02:03.3]} 10. Nxd4 {[%clk 0:02:58.6]} 10... Bc5 {[%clk 0:01:56.9]} 11. Nxc6
{[%clk 0:02:58.7]} 11... Qxc6 {[%clk 0:01:55.4]} 12. Qg4 {[%clk 0:02:58.1]}
12... Kf8 {[%clk 0:01:13.9]} 13. Ne5 {[%clk 0:02:53.7]} 13... Qc7 {[%clk
0:01:12.6]} 14. Nd3 {[%clk 0:02:53.1]} 14... h5 {[%clk 0:01:06.4]} 15. Qh3
{[%clk 0:02:52]} 15... Bd6 {[%clk 0:00:54]} 16. c3 {[%clk 0:02:38.6]} 16... g6
{[%clk 0:00:55.1]} 17. b3 {[%clk 0:02:34.8]} 17... Nf4 {[%clk 0:00:49.6]} 18.
Nxf4 {[%clk 0:02:09.8]} 18... Bxf4 {[%clk 0:00:51.5]} 19. Bxf4 {[%clk
0:02:11.3]} 19... Qxf4 {[%clk 0:00:52.3]} 20. Rad1 {[%clk 0:02:12.8]} 20... Ke7
{[%clk 0:00:40.7]} 21. Rd4 {[%clk 0:02:13.5]} 21... Qg5 {[%clk 0:00:29.4]} 22.
Rfd1 {[%clk 0:02:14.5]} 22... Rhd8 {[%clk 0:00:22]} 23. Qd3 {[%clk 0:02:15.3]}
23... Ke8 {[%clk 0:00:13.4]} 24. Rd7 {[%clk 0:02:10.9]} 24... b6 {[%clk
0:00:03.1]} 25. g3 {[%clk 0:01:01.5]} 25... Rxd7 {[%clk 0:00:04.1]} 26. Qxd7+
{[%clk 0:01:03.4]} 26... Kf8 {[%clk 0:00:05.8]} 27. Qc7 {[%clk 0:00:56.8]} 27...
Qf6 {[%clk 0:00:03.8]} 28. Rd7 {[%clk 0:00:53.2]} 28... Qf3 {[%clk 0:00:03.8]}
29. h4 {[%clk 0:00:39]} 29... Kg8 {[%clk 0:00:05.3]} 30. a4 {[%clk 0:00:36]}
30... Qf5 {[%clk 0:00:04.2]} 31. b4 {[%clk 0:00:35]} 31... Qb1+ {[%clk
0:00:04.9]} 32. Kh2 {[%clk 0:00:34.2]} 32... Qf5 {[%clk 0:00:05.7]} 33. Qf4
{[%clk 0:00:24.5]} 33... Qxf4 {[%clk 0:00:06.7]} 34. gxf4 {[%clk 0:00:26.4]}
34... Rc8 {[%clk 0:00:07.3]} 35. Rxa7 {[%clk 0:00:27.3]} 35... Rxc3 {[%clk
0:00:08.8]} 36. Rb7 {[%clk 0:00:28.9]} 36... Ra3 {[%clk 0:00:09.9]} 37. Rxb6
{[%clk 0:00:27]} 37... Rxa4 {[%clk 0:00:11.4]} 38. Rb7 {[%clk 0:00:27.1]} 38...
Ra3 {[%clk 0:00:12]} 39. Kg2 {[%clk 0:00:28.1]} 39... Kg7 {[%clk 0:00:13.4]} 40.
b5 {[%clk 0:00:29.1]} 40... Rb3 {[%clk 0:00:14.2]} 41. b6 {[%clk 0:00:30.5]}
41... Kf6 {[%clk 0:00:15.7]} 42. f3 {[%clk 0:00:14.8]} 42... Rb2+ {[%clk
0:00:16.2]} 43. Kg3 {[%clk 0:00:16.3]} 43... e5 {[%clk 0:00:15.3]} 44. fxe5+
{[%clk 0:00:17.1]} 44... Kxe5 {[%clk 0:00:16.9]} 45. Rb8 {[%clk 0:00:13.5]}
45... f6 {[%clk 0:00:16.8]} 46. b7 {[%clk 0:00:14.4]} 46... Kf5 {[%clk
0:00:17.9]} 47. Kh3 {[%clk 0:00:12.2]} 47... Rb3 {[%clk 0:00:17.5]} 48. Kg2
{[%clk 0:00:13.6]} 48... Rb2+ {[%clk 0:00:19]} 49. Kf1 {[%clk 0:00:14.8]} 49...
Kf4 {[%clk 0:00:17]} 50. Rf8 {[%clk 0:00:15.3]} 50... Rxb7 {[%clk 0:00:17.2]}
51. Rxf6+ {[%clk 0:00:16.5]} 51... Kg3 {[%clk 0:00:18.8]} 52. Rxg6+ {[%clk
0:00:15.6]} 52... Kxf3 {[%clk 0:00:16.5]} 53. Kg1 {[%clk 0:00:17]} 53... Rb4
{[%clk 0:00:15]} 54. Rf6+ {[%clk 0:00:17.3]} 54... Kg3 {[%clk 0:00:15.5]} 55.
Rg6+ {[%clk 0:00:18.3]} 55... Kxh4 {[%clk 0:00:16.9]} 56. Rc6 {[%clk 0:00:18.9]}
56... Rg4+ {[%clk 0:00:14.5]} 57. Kh2 {[%clk 0:00:19.8]} 57... Ra4 {[%clk
0:00:16.1]} 58. Rc2 {[%clk 0:00:20.6]} 58... Kg4 {[%clk 0:00:16.7]} 59. Rd2
{[%clk 0:00:21.8]} 59... h4 {[%clk 0:00:17.8]} 60. Re2 {[%clk 0:00:23.3]} 60...
h3 {[%clk 0:00:18.4]} 61. Rb2 {[%clk 0:00:24.3]} 61... Kh4 {[%clk 0:00:19.6]}
62. Rc2 {[%clk 0:00:25.6]} 62... Rg4 {[%clk 0:00:21.2]} 63. Rd2 {[%clk
0:00:26.3]} 63... Rf4 {[%clk 0:00:22.5]} 64. Re2 {[%clk 0:00:27.6]} 64... Rg4
{[%clk 0:00:24]} 65. Rd2 {[%clk 0:00:28.8]} 1/2-1/2

[Event "*** Titled Tuesday 3|2 Blitz"]
[Site "Chess.com"]
[Date "2015.03.03"]
[Round "2"]
[White "grandmastergauri"]
[Black "asms9699"]
[Result "1/2-1/2"]
[WhiteElo "2288"]
[BlackElo "2192"]
[TimeControl "180+2"]
[EndTime "11:23:11 PST"]
[Termination "Game drawn by repetition"]

1. e4 {[%clk 0:03:00]} 1... e6 {[%clk 0:02:58.9]} 2. d3 {[%clk 0:02:59.9]} 2...
d5 {[%clk 0:02:59.9]} 3. Nd2 {[%clk 0:03:01.1]} 3... g6 {[%clk 0:03:00.9]} 4. g3
{[%clk 0:02:48.5]} 4... Bg7 {[%clk 0:03:00.9]} 5. Bg2 {[%clk 0:02:49.9]} 5...
Ne7 {[%clk 0:03:01.9]} 6. Ngf3 {[%clk 0:02:50.8]} 6... O-O {[%clk 0:03:03.3]} 7.
O-O {[%clk 0:02:51.7]} 7... c5 {[%clk 0:03:04.6]} 8. Re1 {[%clk 0:02:50.9]} 8...
Nbc6 {[%clk 0:03:05.6]} 9. h4 {[%clk 0:02:31.3]} 9... h5 {[%clk 0:03:02]} 10. e5
{[%clk 0:02:20]} 10... Qc7 {[%clk 0:02:58.3]} 11. Qe2 {[%clk 0:02:20.7]} 11...
Nf5 {[%clk 0:02:59.2]} 12. c3 {[%clk 0:02:21.6]} 12... b5 {[%clk 0:03:00.2]} 13.
Nf1 {[%clk 0:02:10.8]} 13... b4 {[%clk 0:02:58.4]} 14. Bf4 {[%clk 0:02:09.4]}
14... a5 {[%clk 0:02:58.2]} 15. Ne3 {[%clk 0:02:06.3]} 15... Nxe3 {[%clk
0:02:48.9]} 16. Qxe3 {[%clk 0:02:07.1]} 16... Ne7 {[%clk 0:02:44]} 17. Bh3
{[%clk 0:01:51.7]} 17... Bb7 {[%clk 0:02:38.7]} 18. d4 {[%clk 0:01:52.6]} 18...
bxc3 {[%clk 0:02:38.1]} 19. bxc3 {[%clk 0:01:53.3]} 19... cxd4 {[%clk
0:02:39.1]} 20. cxd4 {[%clk 0:01:55.2]} 20... Rac8 {[%clk 0:02:39.8]} 21. Rec1
{[%clk 0:01:52.5]} 21... Qd7 {[%clk 0:02:38.2]} 22. Bh6 {[%clk 0:01:47]} 22...
Rxc1+ {[%clk 0:02:34.7]} 23. Rxc1 {[%clk 0:01:48.1]} 23... Rc8 {[%clk 0:02:36]}
24. Rb1 {[%clk 0:01:33]} 24... Ba6 {[%clk 0:02:32.1]} 25. Bxg7 {[%clk
0:01:32.3]} 25... Kxg7 {[%clk 0:02:34]} 26. Qg5 {[%clk 0:01:29]} 26... Ng8
{[%clk 0:02:16.9]} 27. Rb6 {[%clk 0:01:19.8]} 27... Rc6 {[%clk 0:02:11]} 28. Rb8
{[%clk 0:01:10.4]} 28... Rc8 {[%clk 0:02:05.5]} 29. Rxc8 {[%clk 0:01:05]} 29...
Qxc8 {[%clk 0:02:07.4]} 30. Qd2 {[%clk 0:01:06.2]} 30... a4 {[%clk 0:02:04.4]}
31. Ng5 {[%clk 0:01:00.9]} 31... Bc4 {[%clk 0:01:52.3]} 32. a3 {[%clk 0:01:00]}
32... Qb7 {[%clk 0:01:44.1]} 33. Kh2 {[%clk 0:00:54.9]} 33... Qe7 {[%clk
0:01:25.1]} 34. Qb2 {[%clk 0:00:52.3]} 34... Nh6 {[%clk 0:01:21.2]} 35. Kg1
{[%clk 0:00:39.1]} 35... Bd3 {[%clk 0:01:13.9]} 36. Qc3 {[%clk 0:00:38.5]} 36...
Bf5 {[%clk 0:01:11.7]} 37. Bf1 {[%clk 0:00:39.5]} 37... Be4 {[%clk 0:01:05.3]}
38. Bb5 {[%clk 0:00:38.4]} 38... Nf5 {[%clk 0:00:58.3]} 39. Bxa4 {[%clk
0:00:39.6]} 39... Qa7 {[%clk 0:00:58.7]} 40. Qb4 {[%clk 0:00:38.4]} 40... Nxd4
{[%clk 0:00:55.5]} 41. Be8 {[%clk 0:00:28.4]} 41... Nc2 {[%clk 0:00:36.7]} 42.
Qd2 {[%clk 0:00:22.2]} 42... Nxa3 {[%clk 0:00:21]} 43. Nxf7 {[%clk 0:00:21.4]}
43... Kf8 {[%clk 0:00:18.2]} 44. Nd6 {[%clk 0:00:20.6]} 44... Nc4 {[%clk
0:00:16]} 45. Qh6+ {[%clk 0:00:20.4]} 45... Qg7 {[%clk 0:00:16.3]} 46. Qf4+
{[%clk 0:00:20.7]} 46... Ke7 {[%clk 0:00:15.4]} 47. Nxc4 {[%clk 0:00:20.4]}
47... dxc4 {[%clk 0:00:16.4]} 48. Qxe4 {[%clk 0:00:21.5]} 48... Kxe8 {[%clk
0:00:18]} 49. Qc6+ {[%clk 0:00:22.5]} 49... Kf7 {[%clk 0:00:17.6]} 50. Qxc4
{[%clk 0:00:23.4]} 50... Qxe5 {[%clk 0:00:18.3]} 51. Qd3 {[%clk 0:00:20.3]}
51... Kf6 {[%clk 0:00:19.4]} 52. Qf3+ {[%clk 0:00:21.3]} 52... Qf5 {[%clk
0:00:20.6]} 53. Qc3+ {[%clk 0:00:22.8]} 53... Qe5 {[%clk 0:00:21.8]} 54. Qc8
{[%clk 0:00:23.8]} 54... Kg7 {[%clk 0:00:22.3]} 55. Qd7+ {[%clk 0:00:24.4]}
55... Kh6 {[%clk 0:00:23.5]} 56. Qd2+ {[%clk 0:00:25.5]} 56... Kg7 {[%clk
0:00:24.3]} 57. Qd7+ {[%clk 0:00:26.6]} 57... Kh6 {[%clk 0:00:25.6]} 58. Qe8
{[%clk 0:00:27.6]} 58... Qe1+ {[%clk 0:00:25.9]} 59. Kg2 {[%clk 0:00:29.1]}
59... Qe4+ {[%clk 0:00:26.7]} 60. Kh2 {[%clk 0:00:30.7]} 60... Qe5 {[%clk
0:00:27]} 61. Qf8+ {[%clk 0:00:30.2]} 61... Kh7 {[%clk 0:00:28]} 62. Qf7+ {[%clk
0:00:31.4]} 62... Kh6 {[%clk 0:00:29.3]} 63. Kg2 {[%clk 0:00:32]} 63... Qf5
{[%clk 0:00:29.8]} 64. Qxf5 {[%clk 0:00:24.6]} 64... exf5 {[%clk 0:00:31.7]} 65.
Kf3 {[%clk 0:00:25.8]} 65... Kg7 {[%clk 0:00:33.3]} 66. Kf4 {[%clk 0:00:25.7]}
66... Kf6 {[%clk 0:00:34.9]} 67. f3 {[%clk 0:00:27.2]} 67... Kf7 {[%clk
0:00:36.3]} 68. Kg5 {[%clk 0:00:26.8]} 68... Kg7 {[%clk 0:00:37.4]} 69. f4
{[%clk 0:00:28.3]} 69... Kf7 {[%clk 0:00:37.8]} 70. Kh6 {[%clk 0:00:29.6]} 70...
Kf6 {[%clk 0:00:39.4]} 71. Kh7 {[%clk 0:00:30.6]} 71... Kf7 {[%clk 0:00:41]} 72.
Kh8 {[%clk 0:00:31.5]} 72... Kf8 {[%clk 0:00:42.2]} 73. Kh7 {[%clk 0:00:32.7]}
73... Kf7 {[%clk 0:00:43.7]} 74. Kh6 {[%clk 0:00:34.1]} 74... Kf6 {[%clk
0:00:45]} 75. Kh7 {[%clk 0:00:34.8]} 75... Kf7 {[%clk 0:00:46.2]} 1/2-1/2